{"text_format":"1","workbook":"xlsx","n_sheets":1,"sheets":["conceptos"],"not_rendered":{"charts":0,"images":2,"macros":1,"external_links":0,"defined_names":1,"comments":0,"pivot_tables":0},"unopened":[],"bounds":{"document_bytes":16777216,"sheet_cells":100000,"rows_first":2000,"rows_last":500,"rows_between":2000,"halvings":0,"cell_chars":16384,"cell_head_chars":4096},"cells_cut":0,"cells_raw":0,"read":"whole","date_system":"1900"}

{"sheet":"conceptos","index":0,"n_rows":81,"n_cols":8,"rows_kept":81,"cut":false,"hidden":false,"merged":[[78,0,78,4],[79,0,80,4],[13,0,13,6],[0,2,0,5],[9,2,9,5],[1,2,3,5],[4,2,4,3],[6,2,6,3],[7,2,7,3],[4,4,4,5],[5,4,5,5],[6,4,6,5],[7,4,7,5],[10,2,10,5],[11,2,11,5],[5,1,8,1]]}
[null,"GOBIERNO DEL ESTADO DE JALISCO","LICITACIÓN PÚBLICA ESTATAL"]
[null,"INSTITUTO DE LA INFRAESTRUCTURA FÍSICA EDUCATIVA DEL","INFEJAL-E-REM-B-SE-06297-LP-0012-2021"]
[null,"ESTADO DE JALISCO"]
[]
[null,"DESCRIPCIÓN GENERAL DE LOS TRABAJOS:","FECHA DE INICIO:"]
[null,null,null,"FECHA DE TERMINACIÓN:"]
[null,null,"PLAZO DE EJECUCIÓN:"]
[null,null,"FECHA:"]
[]
[null,"RAZÓN SOCIAL DEL LICITANTE:","NOMBRE, CARGO Y FIRMA DEL LICITANTE:",null,null,null,"DOCUMENTO"]
[]
[]
[]
["PRESUPUESTO DE OBRA"]
[]
["CLAVE","DESCRIPCIÓN","UNIDAD","CANTIDAD","PRECIO UNITARIO ($)","PRECIO UNITARIO ($) CON LETRA","IMPORTE ($) M.N."]
["TRABAJO : BAS-SE-06297","CONSTRUCCIÓN DE SUBESTACIÓN ELÉCTRICA EN LA TELESECUNDARIA ARTICULO 123 CCT 14DTV0189R, UBICADA EN LA LOCALIDAD LA CONCEPCIÓN, MUNICIPIO DE AYOTLÁN, JALISCO.",null,null,null,null,{"$f":"TEXT(SUM(G18 + G61 + G64), \"$ #,##0.00 ;\")","v":"$ 0.00 "}]
[19,"SUBESTACION",null,null,null,null,{"$f":"TEXT(SUM(G19 + G23 + G26 + G28), \"$ #,##0.00 ;\")","v":"$ 0.00 "}]
["19.01(140)","DEMOLICIONES, DESMONTAJES Y MECANICA DE SUELOS    ",null,null,null,null,{"$f":"TEXT(SUM(G20:G22), \"$ #,##0.00 ;\")","v":"$ 0.00 "}]
[140090,"DESMANTELAMIENTO Y RETIRO DE TRANSFORMADOR EXISTENTE, BASE DE MEDICION, INTERRUPTOR GENERAL Y LINEA DE BAJA TENSION. INCLUYE: MOVIMIENTOS, FLETES, GRUA,  ARRASTRES, MANIOBRAS, HERRAMIENTA, MANO DE OBRA CALIFICADA,  Y TRASLADO A LUGAR INDICADO POR SUPERVISION.","PZA","1.0000",0,"CERO PESOS 00/100 M.N.",0,337701]
[918664,"RETIRO DE CORTACIRCUITO FUSIBLE EXISTENTE EN LA SUBESTACION, INCLUYE: HERRAMIENTA, MANO DE OBRA ESPECIALIZADA Y ACARREO DEL MATERIAL AL LUGAR INDICADO POR LA SUPERVISION.","PZA","2.0000",0,"CERO PESOS 00/100 M.N.",0,337702]
[935598,"DESCONEXION Y RETIRO DE APARTARRAYOS, CON RECUPERACION DEL MISMO, INCLUYE: MANO DE OBRA ESPECIALIZADA, ANDAMIOS, HERRAMIENTA Y TRASLADO AL LUGAR INDICADO POR LA SUPERVISION.","PZA","2.0000",0,"CERO PESOS 00/100 M.N.",0,337703]
["19.02(150)","TRABAJOS PRELIMINARES                             ",null,null,null,null,{"$f":"TEXT(SUM(G24:G25), \"$ #,##0.00 ;\")","v":"$ 0.00 "}]
[152202,"EXCAVACION EN CEPAS POR CUALQUIER MEDIO, MATERIAL TIPO \"A\", DE 0 A 2.00 M. DE PROFUNDIDAD, EN SECO, INCLUYE: AFINE DE TALUDES Y FONDO, TRAPALEOS,  MOVIMIENTOS Y ACARREOS DENTRO DE LA OBRA, HERRAMIENTAS Y MANO DE OBRA, MEDIDO EN BANCO.","M3 ","5.7500",0,"CERO PESOS 00/100 M.N.",0,337704]
[156002,"CARGA POR CUALQUIER MEDIO Y ACARREO EN CAMION DE MATERIAL DE DESPERDICIO PRODUCTO DE LAS EXCAVACIONES FUERA DE LA OBRA, A LUGAR PERMITIDO POR LAS AUTORIDADES CORRESPONDIENTES, MEDIDO EN BANCO. INCLUYE CARGA,  ACARREO Y DESCARGA A TIRO LIBRE, HERRAMIENTA, EQUIPO, MATERIALES DE CONSUMO Y MANO DE OBRA.","M3 ","1.1500",0,"CERO PESOS 00/100 M.N.",0,337705]
["19.03(160)","CIMENTACION                                       ",null,null,null,null,{"$f":"TEXT(SUM(G27:G27), \"$ #,##0.00 ;\")","v":"$ 0.00 "}]
[180004,"RELLENO COMPACTADO AL 90 % PROCTOR CON MATERIAL PRODUCTO DE EXCAVACION,  CON PISON DE MANO Y AGUA EN CAPAS DE 20 CMS. DE ESPESOR. INCLUTE: SUMINISTRO DE AGUA PARA LOGRAR HUMEDAD OPTIMA, TENDIDO, TRASPALEOS, EQUIPO, PRUEBAS DE COMPACTACION, AFINE, NIVELACION, HERRAMIENTAS, MANO DE OBRA Y  ACARREO HASTA EL SITIO DE SU COLOCACION. (MEDIDO EN BANCO).\n\n","M3 ","4.6000",0,"CERO PESOS 00/100 M.N.",0,337706]
["19.04(520)","SUBESTACION, GENERADORES Y CELDAS SOLARES.        ",null,null,null,null,{"$f":"TEXT(SUM(G29:G60), \"$ #,##0.00 ;\")","v":"$ 0.00 "}]
[534014,"SUMINISTRO Y TENDIDO DE TUBO CONDUIT DE P.V.C. PESADO, DE 64 MM DIAM. INC.: CONEXIONES, TRAZO, EXCAVACION, RELLENO, DESPERDICIOS, MATERIALES MENORES, PRUEBAS Y ACARREO AL SITIO DE SU COLOCACION.","ML ","6.0000",0,"CERO PESOS 00/100 M.N.",0,337709]
[534104,"SUMINISTRO Y COLOCACION DE TUBO CONDUIT GALVANIZADO, DE 19 MM, PARED GRUESA ROSCADA ETIQUETA AMARILLA, INCLUYE: TRAZO, CORTES, AJUSTES, CONECTORES, COPLES, CURVAS, DOBLECES, ROSCADO, DESPERDICIOS, MATERIALES MENORES, HERRAMIENTAS, PRUEBAS, LIMPIEZA, MANO DE OBRA Y ACARREO DE MATERIALES AL SITIO DE SU COLOCACION.","ML ","2.0000",0,"CERO PESOS 00/100 M.N.",0,337710]
[534113,"SUMINISTRO Y COLOCACION DE TUBO CONDUIT GALVANIZADO, DE 64 MM, PARED GRUESA ROSCADA ETIQUETA AMARILLA, INCLUYE: TRAZO, CORTES, AJUSTES, CONECTORES, COPLES, DOBLECES, ROSCADO, DESPERDICIOS, MATERIALES MENORES, HERRAMIENTAS, PRUEBAS, LIMPIEZA, MANO DE OBRA Y ACARREO DE MATERIALES AL SITIO DE SU COLOCACION.","ML ","4.0000",0,"CERO PESOS 00/100 M.N.",0,337711]
[536014,"SUMINISTRO Y COLOCACION DE CABLE VINANEL THW-LS 600 V. A 75° C, 90° C, MARCA CONDUCTORES MONTERREY, (VIAKON-PROTOCOLIZADO), CABLE VINANEL 21 THW-LS 600 V. A 75° C, 90° C, MARCA CONDUMEX (CONDUMEX PROTOCOLIZADO). CAL. 4,  INCLUYE: DESPERDICIOS, MATERIALES MENORES, HERRAMIENTA, CONEXIONES, MANO DE OBRA ESPECIALIZADA, LIMPIEZA DEL AREA DE TRABAJO, PRUEBAS Y ACARREO AL SITIO DE SU COLOCACION.","ML ","6.6000",0,"CERO PESOS 00/100 M.N.",0,337712]
[536016,"SUMINISTRO Y COLOCACION DE CABLE VINANEL THW-LS 600 V. A 75° C, 90° C, MARCA CONDUCTORES MONTERREY, (VIAKON-PROTOCOLIZADO), CABLE VINANEL 21 THW-LS 600 V. A 75° C, 90° C, MARCA CONDUMEX (CONDUMEX PROTOCOLIZADO). CAL. 2,  INCLUYE: DESPERDICIOS, MATERIALES MENORES, HERRAMIENTA, CONEXIONES, MANO DE OBRA ESPECIALIZADA, LIMPIEZA DEL AREA DE TRABAJO, PRUEBAS Y ACARREO AL SITIO DE SU COLOCACION.","ML ","3.3000",0,"CERO PESOS 00/100 M.N.",0,337713]
[536018,"SUMINISTRO Y COLOCACION DE CABLE VINANEL THW-LS 600 V. A 75° C, 90° C, MARCA CONDUCTORES MONTERREY, (VIAKON-PROTOCOLIZADO), CABLE VINANEL 21 THW-LS 600 V. A 75° C, 90° C, MARCA CONDUMEX (CONDUMEX PROTOCOLIZADO). CAL. 1/0,  INCLUYE: DESPERDICIOS, MATERIALES MENORES, HERRAMIENTA, CONEXIONES, MANO DE OBRA ESPECIALIZADA, LIMPIEZA DEL AREA DE TRABAJO, PRUEBAS Y ACARREO AL SITIO DE SU COLOCACION.","ML ","6.6000",0,"CERO PESOS 00/100 M.N.",0,337714]
[536020,"SUMINISTRO Y COLOCACION DE CABLE VINANEL THW-LS 600 V. A 75° C, 90° C, MARCA CONDUCTORES MONTERREY, (VIAKON-PROTOCOLIZADO), CABLE VINANEL 21 THW-LS 600 V. A 75° C, 90° C, MARCA CONDUMEX (CONDUMEX PROTOCOLIZADO). CAL. 2/0,  INCLUYE: DESPERDICIOS, MATERIALES MENORES, HERRAMIENTA, CONEXIONES, MANO DE OBRA ESPECIALIZADA, LIMPIEZA DEL AREA DE TRABAJO, PRUEBAS Y ACARREO AL SITIO DE SU COLOCACION.","ML ","3.3000",0,"CERO PESOS 00/100 M.N.",0,337715]
[536022,"SUMINISTRO Y COLOCACION DE CABLE VINANEL THW-LS 600 V. A 75° C, 90° C, MARCA CONDUCTORES MONTERREY, (VIAKON-PROTOCOLIZADO), CABLE VINANEL 21 THW-LS 600 V. A 75° C, 90° C, MARCA CONDUMEX (CONDUMEX PROTOCOLIZADO). CAL. 3/0,  INCLUYE: DESPERDICIOS, MATERIALES MENORES, HERRAMIENTA, CONEXIONES, MANO DE OBRA ESPECIALIZADA, LIMPIEZA DEL AREA DE TRABAJO, PRUEBAS Y ACARREO AL SITIO DE SU COLOCACION.","ML ","39.6000",0,"CERO PESOS 00/100 M.N.",0,337716]
[536024,"SUMINISTRO Y COLOCACION DE CABLE VINANEL THW-LS 600 V. A 75° C, 90° C, MARCA CONDUCTORES MONTERREY, (VIAKON-PROTOCOLIZADO), CABLE VINANEL 21 THW-LS 600 V. A 75° C, 90° C, MARCA CONDUMEX (CONDUMEX PROTOCOLIZADO). CAL. 4/0,  INCLUYE: DESPERDICIOS, MATERIALES MENORES, HERRAMIENTA, CONEXIONES, MANO DE OBRA ESPECIALIZADA, LIMPIEZA DEL AREA DE TRABAJO, PRUEBAS Y ACARREO AL SITIO DE SU COLOCACION.","ML ","19.8000",0,"CERO PESOS 00/100 M.N.",0,337717]
[536129,"SUMINISTRO Y COLOCACION DE CURVA CONDUIT DE PVC PESADO  DE 64 MM.  DE DIAM.  INCLUYE: MATERIALES MENORES Y DE CONSUMO, HERRAMIENTAS, PRUEBAS,  DESPERDICIOS, MANO DE OBRA Y ACARREOS AL SITIO DE SU COLOCACION.","PZA","2.0000",0,"CERO PESOS 00/100 M.N.",0,337718]
[537102,"SUMINISTRO Y COLOCACION DE CABLE DE COBRE DESNUDO CAL. 2, AWG, MCA. CONDUMEX, CONELEC O CONDUCTORES MONTERREY. INCLUYE: DESPERDICIOS, MATERIALES MENORES, PRUEBAS Y ACARREO AL SITIO DE SU COLOCACION.","ML ","3.0000",0,"CERO PESOS 00/100 M.N.",0,337719]
[537112,"SUMINISTRO Y COLOCACION DE CABLE DE COBRE DESNUDO CAL. 8, AWG, MCA. CONDUMEX, CONELEC O CONDUCTORES MONTERREY. INCLUYE: DESPERDICIOS, MATERIALES MENORES, PRUEBAS Y ACARREO AL SITIO DE SU COLOCACION.","ML ","8.8000",0,"CERO PESOS 00/100 M.N.",0,337720]
[537116,"SUMINISTRO Y COLOCACION DE CABLE DE COBRE DESNUDO CAL. 4, AWG, MCA. CONDUMEX, CONELEC O CONDUCTORES MONTERREY. INCLUYE: DESPERDICIOS, MATERIALES MENORES, PRUEBAS Y ACARREO AL SITIO DE SU COLOCACION.","ML ","22.0000",0,"CERO PESOS 00/100 M.N.",0,337721]
[540123,"SUMINISTRO Y COLOCACION DE TABLERO DE ALUMBRADO Y DISTRIBUCION, CAT NQ-183-L-100, CON ZAPATAS PRINCIPALES 100 A. 2 FASES, 3 HILOS,  MARCA SQUARE D, INCLUYE: MATERIALES MENORES Y DE CONSUMO, HERRAMIENTAS, ELEMENTOS DE FIJACION, CONEXION, PRUEBAS,  MANO DE OBRA ESPECIALIZADA Y ACARREOS AL SITIO DE SU INSTALACION.","PZA","1.0000",0,"CERO PESOS 00/100 M.N.",0,337722]
[543080,"SUMINISTRO Y COLOCACION DE INTERRUPTOR TERMOMAGNETICO POWERPACT MARCO \"H\" CON 2 POLOS DE 125-150 AMPERES MCA. SQUARE’D CAT. HDL26125-150 CON GABINETE PARA INTERRUPTORES POWERPACT  DE CAJA MOLDEADA NEMA 1 MCA. SQUARE´D CAT. H150FMX PARA USO EN INTERIOR, INCLUYE: MATERIALES MENORES Y DE FIJACION,  PRUEBAS, HERRAMIENTAS, MANO DE OBRA Y ACARREO DE MATERIALES AL SITIO DE SU COLOCACION.","PZA","1.0000",0,"CERO PESOS 00/100 M.N.",0,337723]
[543199,"SUMINISTRO Y COLOCACION DE INTERRUPTOR TERMOMAGNETICO CON GABINETE PARA INTERRUPTORES POWERPACT DE CAJA MOLDEADA, USOS GENERALES, 2 POLOS, DE 150 A 250 AMPERES, MCA. SQUARE'D, GABINETE NEMA 1, CAT. J250FMX , CON INTERRUPTOR  POWERPACT MARCO \"J\", CAT. JDL26150-250,  INCLUYE: MATERIALES MENORES Y DE FIJACION,  PRUEBAS, HERRAMIENTAS, MANO DE OBRA Y ACARREO DE MATERIALES AL SITIO DE SU COLOCACION.","PZA","1.0000",0,"CERO PESOS 00/100 M.N.",0,337724]
[558522,"SUMINISTRO Y COLOCACION DE VARILLA DE TIERRA COOPERWELD, DE 3.00 M X 19 MM DE DIAM.  INCLUYE: UNA  CARGA CADWELD NO. 90, CONECTOR COOPER WELD, SOLDADURA CADWELD NO. 90, PARTE PROPORCIONAL DE MOLDE 161V.,  MATERIALES MENORES, PRUEBAS Y ACARREO AL SITIO DE SU COLOCACION.","PZA","1.0000",0,"CERO PESOS 00/100 M.N.",0,337725]
[558572,"SUMINISTRO Y COLOCACION DE SISTEMA DE TIERRAS PARA TRANSFORMADOR Y CCF3C, CCF-2C Y CCF-1C, INCLUYE: 3 (TRES) VARILLAS COPER WELD DE 16 X 3000 MM, 3 (TRES) CARGA CADWELD NO. 90, 19 MTS. DE CABLE DE COBRE DESNUDO CAL. NO. 2 AWG, 1 (UNO) CONECTOR PURO CAL. 1/0, 0.06 (PUNTO CERO SEIS) PARTE PROPORCIONAL DE MOLDE. FLETES Y MANO DE OBRA (TODOS LOS MATERIALES DEBERAN CONTAR CON PROTOCOLO DE PRUEBAS DE LAPEM).","PZA","2.0000",0,"CERO PESOS 00/100 M.N.",0,337726]
[880362,"SUMINISTRO E INSTALACION DE BAJANTE DE TIERRAS DE POSTE NORMA CFE, INCLUYE: 12 MTS DE CABLE DE COBRE DESNUDO CAL 2 AWG, 1 VARILLA COPER WELD DE 5/8\" X 3.00 MTS, 1 CARGA DE SOLDADURA CADWELD NO.90, FLETES, TRASLADOS,  CONEXIONES, FIJACION, MATERIALES MENORES, Y MANO DE OBRA CALIFICADA. ( LOS MATERIALES DEBERAN CONTAR CON PROTOCOLO DE PRUEB DE LAPEM).","PZA","1.0000",0,"CERO PESOS 00/100 M.N.",0,337727]
[880406,"SUMINISTRO Y COLOCACION DE ALAMBRE DE COBRE DESNUDO SEMIDURO CAL 4 AWG, INCLUYE: FLETES, MANIBRAS DE CARGA Y DESCARGA, ALINEACION, TRASLADOS, ARRASTRES, ELEVACIONES, MATERIALES NECESARIOS PARA SU COLOCACION, HERRAMIENTAS, NIVELACION Y MANO DE OBRA A CUALQUIER ALTURA.","ML ","8.0000",0,"CERO PESOS 00/100 M.N.",0,337728]
[880738,"DICTAMEN DE VERIFICACION A LAS INSTALACIONES ELECTRICAS DEL PLANTEL (SUBESTACION Y BAJA TENSION). EMITIDO POR UNA UNIDAD DE VERIFICACION APROBADA POR LA SECRETARIA DE ENERGIA Y CON REGISTRO VIGENTE. INCLUYE: ADECUACION DE LOS PLANOS ELECTRICOS DEL NUCLEO DE LA ESCUELA CON CUADROS DE CARGAS Y DIAGRAMAS UNIFILAR PARA REVISION Y APROBACION DE LA UNIDAD VERIFICADORA.","PZA","1.0000",0,"CERO PESOS 00/100 M.N.",0,337729]
[880756,"TRAMITE ANTE LA CFE PARA LA DESCONEXION DEL TRANSFORMADOR EXISTENTE, ASI COMO LA NOTIFICACION DEL CAMBIO DE CAPACIDAD DEL TRANSFORMADOR, INCLUYE PAGO DE LIBRANZA","PZA","1.0000",0,"CERO PESOS 00/100 M.N.",0,337730]
[880868,"SUMINISTRO Y COLOCACION DE TRANSFORMADOR MONOFASICO DOS BORNAS DE  DE 37.5 KVA TIPO POSTE, AUTOENFRIADO EN ACEITE PARA 13200/240/120 VOLTS. INCLUYE: FLETES, MANIOBRAS, MANO DE OBRA Y PRUEBA DE PUESTA EN SERVICIO.(TODOS LOS MATERIALES DEBERAN CONTAR CON PROTOCOLO DE PRUEBAS DE LAPEM).","PZA","1.0000",0,"CERO PESOS 00/100 M.N.",0,337731]
[890080,"SUMINISTRO E INSTALACION DE CONECTOR ESTRIBO PARA CAL. 1/0 ACSR, INCLUYE: MONTAJE, CONEXIÓN, PRUEBAS Y ACARREOS. (EL MATERIAL DEBERA CONTAR CON PROTOCOLO DE PRUEBAS LAPEM).","PZA","2.0000",0,"CERO PESOS 00/100 M.N.",0,337732]
[890081,"SUMINISTRO E INSTALACION DE CONECTOR PERICO PARA CAL 1/0, INCLUYE: MONTAJE, CONEXIÓN, PRUEBAS Y ACARREOS. (EL MATERIAL DEBERA CONTAR CON PROTOCOLO DE PRUEBAS LAPEM).","PZA","2.0000",0,"CERO PESOS 00/100 M.N.",0,337733]
[890089,"SUMINISTRO E INSTALACION DE APARTARRAYOS DE OXIDO ZINC PARA 13.2 KV, INCLUYE: MONTAJE, CONEXIÓN, PRUEBAS Y ACARREOS. (EL MATERIAL DEBERA CONTAR CON PROTOCOLO DE PRUEBAS LAPEM).","PZA","2.0000",0,"CERO PESOS 00/100 M.N.",0,337734]
[890096,"SUMINISTRO E INSTALACION DE CORTACIRCUITOS FUSIBLES PARA 15 KV, INCLUYE: MONTAJE, MANO DE OBRA, MANIOBRAS, ELEVACIONES, CONEXIÓN, PRUEBAS Y ACARREOS. (EL MATERIAL DEBERA CONTAR CON PROTOCOLO DE PRUEBAS LAPEM).","PZA","2.0000",0,"CERO PESOS 00/100 M.N.",0,337735]
[916085,"SUMINISTRO Y COLOCACION DE LISTON FUSIBLE DE MEDIA TENSION EN PORTAFUSIBLE EXISTENTE, INCLUYE: DESCONEXION DE LINEA DE ACOMETIDA EN MEDIA TENSION PARA QUITAR LOS LISTON PROVICIONAL INSTALADO POR CFE Y COLOCAR PORTAFUSIBLE DEFINITIVO, INCLUYE: MANO DE OBRA ESPECIALIZADA, ACARREOS HASTA EL SITIO DE SU COLOCACION.","PZA","4.0000",0,"CERO PESOS 00/100 M.N.",0,337736]
[919234,"SELLADO DE BOCAS DE DUCTOS EN INTERIOR DE REGISTROS DE LINEA ELECTRICA DE BAJA TENSION DE 1/2\" A 3\" DE DIAMETRO, A BASE DE ESPUMA DE POLIURETANO,  INCLUYE: MATERIALES, HERRAMIENTAS, DESPERDICIOS Y MANO DE OBRA.","PZA","2.0000",0,"CERO PESOS 00/100 M.N.",0,337737]
[930037,"SUMINISTRO Y COLOCACION DE CONECTOR RECTO PARA TUBO LICUATITE DE 63 MM. DE DIAMETRO, INCLUYE: DESPERDICIOS, MATERIALES MENORES, PRUEBAS, HERRAMIENTAS, MANO DE OBRA Y ACARREO DE MATERIALES AL SITIO DE SU COLOCACION.","PZA","1.0000",0,"CERO PESOS 00/100 M.N.",0,337738]
[930038,"SUMINISTRO Y COLOCACION DE TUBO FLEXIBLE LICUATITE DE 63 MM. DE DIAMETRO, INCLUYE: MATERIALES MENORES, PRUEBAS, DESPERDICIOS, ELEMENTOS DE FIJACION, HERRAMIENTAS, MANO DE OBRA Y ACARREO DE MATERIALES AL SITIO DE SU UTILIZACION.","ML ","1.0000",0,"CERO PESOS 00/100 M.N.",0,337739]
[935419,"MODIFICACION DE CONTRATO POR AMPLIACION DE CARGA ELECTRICA. INCLUYE; TRAMITE ANTE LA C.F.E. INCORPORACION A COBRANZA CENTRALIZADA DE LA SEJ. Y PAGO POR DEPOSITO.","PDA","1.0000",0,"CERO PESOS 00/100 M.N.",0,337740]
["08","MURETE DE ACOMETIDA",null,null,null,null,{"$f":"TEXT((G62), \"$ #,##0.00 ;\")","v":"$ 0.00 "}]
["08.01(511)","INSTALACION ELECTRICA EN OBRA EXTERIOR            ",null,null,null,null,{"$f":"TEXT(SUM(G63:G63), \"$ #,##0.00 ;\")","v":"$ 0.00 "}]
[558012,"MURETE PARA ACOMETIDA ELECTRICA DE TV. SEC. Y/O ESC. DE EDUCACION ESPECIAL DE 1.90 MT DE ALTURA POR 1.25 MTS. DE ANCHO Y 0.60 MT. DE FONDO, A BASE DE MURO DE LAMA DE 7 X 14 X 28 A TEZON EN PARTE INFERIOR Y A SOGA EN EL AREA DESTINADA PARA LA CAJA DE SOQUET DE MEDICION E INTERRUPTORES, DALAS Y CASTILLOS  DE CONCRETO F´C=150 KG/CM2, DALA DE DESPLANTE APARENTE DE 28 X 10 CM. LOSAS Y MUROS DE CONCRETO F´C= 150 KG/CM2., ARMADO CON UNA VARILLA DEL # 3@20 CM. EN AMBAS DIRECCIONES, INCLUYE: SUM. Y COLOCACION DE BASE SOQUET (7 X 100) TRIFASICA DE 100 A. MCA. C.H. O SIMILAR EMPOTRADA EN MURETE,  EXCAVACION, CIMENTACION DE PIEDRA, BASES PARA CASTILLOS,  APLANADO, PINTURA VINILICA Y ESMALTE, PERFORACIONES, REGISTRO ELECTRICO, TUBERIAS CONDUIT GALV. PG. PARA CONEXION A PREPARACION AEREA DE MUFA YTUBERIA CONDUIT DE PVC. PESADO PARA CONEXION A REGISTRO DE DIST. Y CONEXION A SUBESTACION SUBTERRANEA, SEÑALIZACION DEL MURETE, PUERTAS METALICAS,  MATERIALES, HERRAMIENTAS, LIMPIEZA Y MANO DE OBRA.","PZA","1.0000",0,"CERO PESOS 00/100 M.N.",0,337707]
["02","RED ELECTRICA",null,null,null,null,{"$f":"TEXT((G65), \"$ #,##0.00 ;\")","v":"$ 0.00 "}]
["02.01(511)","INSTALACION ELECTRICA EN OBRA EXTERIOR            ",null,null,null,null,{"$f":"TEXT(SUM(G66:G66), \"$ #,##0.00 ;\")","v":"$ 0.00 "}]
[975088,"SUMINISTRO, ARMADO Y COLOCACION DE LUMINARIA PARA ALUMBRADO EXTERIOR TIPO PROYECTOR PARA AREAS DEPORTIVAS, SERIES TV, MCA.  LITHONIA LIGHTING,  CAT. TV-1000M-GP4-TB, FABRICADO CON CUERPO DE ALUMINIO ANODIZADO  COLOR NATURAL, DIFUSOR PARABOLICO DE ALUMINIO Y PANTALLA CRISTAL TEMPLADO RESISTENTE AL IMPACTO. EQUIPADA CON BALASTRO DE ALTO FACTOR DE POTENCIA DE 1000 WATT, MULTIVOLTAJE 120, 208, 240, 277V Y LAMPARA DE ADITIVOS METALICOS DE 1000 WATTS. COMPLETA,  INCLUYE: HERRAMIENTAS, EMPAQUE, ANDAMIOS,  MATERIALES MENORES Y DE FIJACION, LAMPARA, CONEXIONES, PRUEBAS, LIMPIEZA Y MANO DE OBRA ESPECIALIZADA.","PZA","1.0000",0,"CERO PESOS 00/100 M.N.",0,337708]
[null,"RESUMEN DE PARTIDAS"]
["BAS-SE-06297","CONSTRUCCIÓN DE SUBESTACIÓN ELÉCTRICA EN LA TELESECUNDARIA ARTICULO 123 CCT 14DTV0189R, UBICADA EN LA LOCALIDAD LA CONCEPCIÓN, MUNICIPIO DE AYOTLÁN, JALISCO.",null,null,null,null,{"$f":"G17","v":"$ 0.00 "}]
[19,"SUBESTACION",null,null,null,null,{"$f":"G18","v":"$ 0.00 "}]
["19.01(140)","DEMOLICIONES, DESMONTAJES Y MECANICA DE SUELOS    ",null,null,null,null,{"$f":"G19","v":"$ 0.00 "}]
["19.02(150)","TRABAJOS PRELIMINARES                             ",null,null,null,null,{"$f":"G23","v":"$ 0.00 "}]
["19.03(160)","CIMENTACION                                       ",null,null,null,null,{"$f":"G26","v":"$ 0.00 "}]
["19.04(520)","SUBESTACION, GENERADORES Y CELDAS SOLARES.        ",null,null,null,null,{"$f":"G28","v":"$ 0.00 "}]
["08","MURETE DE ACOMETIDA",null,null,null,null,{"$f":"G61","v":"$ 0.00 "}]
["08.01(511)","INSTALACION ELECTRICA EN OBRA EXTERIOR            ",null,null,null,null,{"$f":"G62","v":"$ 0.00 "}]
["02","RED ELECTRICA",null,null,null,null,{"$f":"G64","v":"$ 0.00 "}]
["02.01(511)","INSTALACION ELECTRICA EN OBRA EXTERIOR            ",null,null,null,null,{"$f":"G65","v":"$ 0.00 "}]
[]
["IMPORTE CON LETRA (IVA INCLUIDO)",null,null,null,null,"SUBTOTAL M.N.",{"$f":"TEXT(G17,  \"$ #,##0.00 ;\")","v":"$ 0.00 "}]
[{"$f":"UPPER(CONVERTIRNUM(ROUND( G17 * 1.16, 2)))","v":"CERO PESOS 00/100 M.N."},null,null,null,null,"IVA M.N.",{"$f":"TEXT(ROUND( G17 * 0.16, 2),  \"$ #,##0.00 ;\")","v":"$ 0.00 "}]
[null,null,null,null,null,"TOTAL M.N.",{"$f":"TEXT(ROUND( G17 * 1.16, 2),  \"$ #,##0.00 ;\")","v":"$ 0.00 "}]